{"text_format":"1","workbook":"xlsx","n_sheets":5,"sheets":["5d-Deckblatt ZE","5e-Einzelbelege ZE","5f-Kostenzusammenstellung ZE","5e-Einzelbelege Weiterleitung","5f-Kostenzusammenstellung WE"],"not_rendered":{"charts":0,"images":2,"macros":1,"external_links":0,"defined_names":17,"comments":0,"pivot_tables":0},"unopened":[],"bounds":{"document_bytes":16777216,"sheet_cells":100000,"rows_first":2000,"rows_last":500,"rows_between":2000,"halvings":0,"cell_chars":16384,"cell_head_chars":4096},"cells_cut":0,"cells_raw":0,"read":"whole","date_system":"1900"}

{"sheet":"5d-Deckblatt ZE","index":0,"n_rows":47,"n_cols":12,"rows_kept":47,"cut":false,"hidden":false,"merged":[[8,9,8,11],[0,0,0,6],[0,7,0,11],[1,1,1,3],[1,7,1,11],[2,1,2,3],[2,7,2,11],[3,7,3,11],[4,7,4,11],[5,7,5,11],[7,7,7,8],[7,9,7,11],[25,0,25,4],[25,5,25,10],[11,0,11,6],[12,0,12,6],[13,0,13,6],[17,0,17,5],[17,6,17,9],[18,0,18,5],[18,6,18,9],[19,0,19,4],[19,6,19,9],[20,8,20,10],[23,1,23,2],[24,0,24,9],[40,1,40,5],[41,1,41,5],[45,0,45,7],[29,4,29,9],[30,0,30,3],[30,4,30,9],[31,0,31,3],[31,4,31,9],[32,0,32,3],[32,4,32,9]]}
["Verwendungsnachweis",null,null,null,null,null,null,"Name und Anschrift des Zuschussempfängers (ZE):"]
[]
[]
[]
[]
[]
[]
[null,null,null,null,null,null,null,"E-Mail:"]
[null,null,null,null,null,null,null,"Steuernummer:"]
[]
[]
["Deutsche Gesellschaft für Internationale Zusammenarbeit (GIZ) GmbH"]
["Friedrich-Ebert-Allee 36"]
["53113 Bonn"]
[]
[null,null,null,null,null,null,null,null,null,null,"Datum:",{"$f":"TODAY()","v":"2021-07-09"}]
[]
["Projektbearbeitungsnummer:"]
["Vertragsnummer:"]
["Verwendungsnachweis-Nr."]
["für den Zeitraum",null,null,null,null,"von",null,"bis"]
[]
["Sehr geehrte Damen und Herren,"]
[]
["anbei senden wir Ihnen den oben genannten Verwendungsnachweis"]
["über Kosten in Höhe von",null,null,null,null,{"$f":"IF('5f-Kostenzusammenstellung ZE'!B24=0,\"\",'5f-Kostenzusammenstellung ZE'!B24)","v":""}]
["(automatischer Übertrag aus Anlage „Kostenzusammenstellung“)"]
[]
[]
["Kontoinhaber"]
["IBAN"]
["SWIFT/BIC"]
["Bank"]
[]
["Wir bestätigen,"]
["-","dass die Kosten notwendig waren und wirtschaftlich und sparsam verfahren worden ist"]
["-","dass die in den Belegen enthaltenen Kosten richtig sind bzw. die im einfachen"]
[null,"Verwendungsnachweis aufgeführten Einnahmen und Kosten mit den Büchern "]
[null,"und Belegen übereinstimmen"]
["-","sofern dies der Schlussverwendungsnachweis ist, dass der ZE seinen Anteil von "]
[null,null,null,null,null,null,"bzw. der (die) andere(n) Geber ihren Anteil von"]
[null,null,null,null,null,null,"an der Gesamtfinanzierung gemäß Vertrag geleistet haben"]
[]
[]
[]
[]
["Unterschrift des Zuschussempfängers"]

{"sheet":"5e-Einzelbelege ZE","index":1,"n_rows":33,"n_cols":9,"rows_kept":33,"cut":false,"hidden":false,"merged":[[29,2,30,2],[29,3,30,3],[29,4,29,7],[30,4,30,7],[29,0,30,1],[1,0,1,1],[2,0,2,1],[5,0,5,1],[4,0,4,1],[0,0,0,6],[2,6,2,7],[3,0,3,1],[1,2,1,7]]}
["Einzelbelegaufstellung je Budgetlinie gemäß Vertrag (Anlage 5e) - Zuschussempfänger"]
["Zuschussempfänger (ZE):",null,{"$f":"IF('5d-Deckblatt ZE'!H2=\"\",\"\",'5d-Deckblatt ZE'!H2)","v":""}]
["Projektbearbeitungsnummer:",null,{"$f":"IF('5d-Deckblatt ZE'!G18=\"\",\"\",'5d-Deckblatt ZE'!G18)","v":""},"Vertragsnummer:",{"$f":"IF('5d-Deckblatt ZE'!G19=\"\",\"\",'5d-Deckblatt ZE'!G19)","v":""}]
["Budgetlinie:"]
["Zeitraum von:",null,{"$f":"IF('5d-Deckblatt ZE'!G21=\"\",\"\",'5d-Deckblatt ZE'!G21)","v":""}]
["bis:",null,{"$f":"IF('5d-Deckblatt ZE'!I21=\"\",\"\",'5d-Deckblatt ZE'!I21)","v":""}]
[]
[{"$f":"ROMAN(1)","v":"I"},{"$f":"ROMAN(2)","v":"II"},{"$f":"ROMAN(3)","v":"III"},{"$f":"ROMAN(4)","v":"IV"},{"$f":"ROMAN(5)","v":"V"},{"$f":"ROMAN(6)","v":"VI"},{"$f":"ROMAN(7)","v":"VII"},{"$f":"ROMAN(8)","v":"VIII"},{"$f":"ROMAN(9)","v":"IX"}]
["lfd. Nr. ","interne Belegnummer des ZE","Belegdatum","Zahlungsempfänger des Beleges","detaillierter Beleginhalt","Bezeichnung\nFremdwährung (z.B. USD)","Betrag\nFremdwährung","Kurs*","Kosten in €"]
[1,null,null,null,null,null,null,null,{"$f":"IF(G10=\"\",\"\",G10*H10)","v":""}]
[2,null,null,null,null,null,null,null,{"$f":"IF(G11=\"\",\"\",G11*H11)","v":""}]
[3,null,null,null,null,null,null,null,""]
[4,null,null,null,null,null,null,null,""]
[5,null,null,null,null,null,null,null,""]
[6,null,null,null,null,null,null,null,""]
[7,null,null,null,null,null,null,null,""]
[8,null,null,null,null,null,null,null,""]
[9,null,null,null,null,null,null,null,""]
[10,null,null,null,null,null,null,null,""]
[11,null,null,null,null,null,null,null,""]
[12,null,null,null,null,null,null,null,""]
[13,null,null,null,null,null,null,null,""]
[14,null,null,null,null,null,null,null,""]
[15,null,null,null,null,null,null,null,""]
[16,null,null,null,null,null,null,null,""]
[17,null,null,null,null,null,null,null,""]
[18,null,null,null,null,null,null,null,""]
[19,null,null,null,null,null,null,null,""]
[20,null,null,null,null,null,null,null,""]
[null,null,null,null,"Gesamtsumme ",null,null,null,{"$f":"SUM(I10:I29)","v":0}]
[null,null,null,null,"(Übertrag auf Kostenzusammenstellung)"]
[]
["* Kurs, entweder gegen Nachweis (Umtauschbeleg) oder durch Anwendung der EU-Kursliste: https://www.giz.de/de/mit_der_giz_arbeiten/4226.html"]

{"sheet":"5f-Kostenzusammenstellung ZE","index":2,"n_rows":37,"n_cols":8,"rows_kept":37,"cut":false,"hidden":false,"merged":[[11,1,11,2],[0,0,0,6],[1,1,1,4],[2,1,2,2],[3,1,3,2],[4,1,4,2],[6,1,6,2],[7,1,7,2],[7,3,8,3],[8,1,8,2],[9,1,9,2],[10,1,10,2],[23,1,23,2],[12,1,12,2],[13,1,13,2],[14,1,14,2],[15,1,15,2],[16,1,16,2],[17,1,17,2],[18,1,18,2],[19,1,19,2],[20,1,20,2],[21,1,21,2],[22,1,22,2],[25,1,25,2],[26,0,26,3],[28,0,28,6],[29,0,29,6],[30,5,30,6]]}
["Kostenzusammenstellung zum Verwendungsnachweis (Anlage 5f) - Zuschussempfänger"]
["Zuschussempfänger (ZE):",{"$f":"IF('5d-Deckblatt ZE'!H2=\"\",\"\",'5d-Deckblatt ZE'!H2)","v":""}]
["Projektbearbeitungsnummer:",{"$f":"IF('5d-Deckblatt ZE'!G18=\"\",\"\",'5d-Deckblatt ZE'!G18)","v":""},null,"Vertragsnummer:",{"$f":"IF('5d-Deckblatt ZE'!G19=\"\",\"\",'5d-Deckblatt ZE'!G19)","v":""}]
["Zeitraum von:",{"$f":"IF('5d-Deckblatt ZE'!G21=\"\",\"\",'5d-Deckblatt ZE'!G21)","v":""}]
["bis:",{"$f":"IF('5d-Deckblatt ZE'!I21=\"\",\"\",'5d-Deckblatt ZE'!I21)","v":""}]
[]
[{"$f":"ROMAN(1)","v":"I"},{"$f":"ROMAN(2)","v":"II"},null,{"$f":"ROMAN(3)","v":"III"},{"$f":"ROMAN(4)","v":"IV"},{"$f":"ROMAN(5)","v":"V"},{"$f":"ROMAN(6)","v":"VI"},{"$f":"ROMAN(7)","v":"VII"}]
["Budgetlinie \ngemäß Vertrag","Kosten im o.g. Zeitraum\n(Übertrag Gesamtsummen aus Einzelbelegaufstellungen/\nAnlage 5e)",null,"Nur für GIZ","bisher nachgewiesene Kosten \n(aus vorherigen Abrechnungszeiträumen)\n","Gesamtbudget\ngemäß Vertrag ","Restmittel \n","Restmittel "]
[null,"€",null,null,"€","€","€","%"]
[null,null,null,null,null,null,{"$f":"IF(B10=\"\",\"\",F10-E10-B10)","v":""},{"$f":"IF(G10=\"\",\"\",G10/F10)","v":""}]
[null,null,null,null,null,null,"",""]
[null,null,null,null,null,null,"",""]
[null,null,null,null,null,null,"",""]
[null,null,null,null,null,null,"",""]
[null,null,null,null,null,null,"",""]
[null,null,null,null,null,null,"",""]
[null,null,null,null,null,null,"",""]
[null,null,null,null,null,null,"",""]
[null,null,null,null,null,null,"",""]
[null,null,null,null,null,null,"",""]
[null,null,null,null,null,null,"",""]
[null,null,null,null,null,null,"",""]
[null,null,null,null,null,null,"",""]
["Gesamt €",{"$f":"SUM(B10:C23)","v":0},null,null,{"$f":"SUM(E10:E23)","v":0},{"$f":"SUM(F10:F23)","v":0},{"$f":"SUM(G10:G23)","v":0}]
[]
["an Dritte weitergeleitete Abschläge/ Voraus-/Anzahlungen im o. g. Zeitraum (keine Kosten!)\n",0]
["* bei mehr als einer Weiterleitung ist eine entsprechende Aufstellung beizufügen"]
["Wir bestätigen, dass "]
["   -  die Kosten notwendig waren und wirtschaftlich und sparsam verfahren worden ist"]
["   -  die in den Belegen enthaltenen Kosten richtig sind bzw. die im einfachen Verwendungsnachweis\n      aufgeführten Einnahmen, Kosten und Ausgaben mit den Büchern und Belegen übereinstimmen"]
[]
[]
[]
[]
[]
[]
["Datum / Unterschrift / ggf. Stempel"]

{"sheet":"5e-Einzelbelege Weiterleitung","index":3,"n_rows":34,"n_cols":9,"rows_kept":34,"cut":false,"hidden":false,"merged":[[30,4,30,7],[31,4,31,7],[0,0,0,6],[1,0,1,1],[1,2,1,7],[3,0,3,1],[3,6,3,7],[4,0,4,1],[5,0,5,1],[6,0,6,1],[30,0,31,1],[30,2,31,2],[30,3,31,3],[2,2,2,3]]}
["Einzelbelegaufstellung je Budgetlinie gemäß Vertrag  für Weiterleitungsempfänger (Anlage 5e)"]
["Zuschussempfänger (ZE):",null,{"$f":"IF('5d-Deckblatt ZE'!H2=\"\",\"\",'5d-Deckblatt ZE'!H2)","v":""}]
["Weiterleitungsempfänger (WE):"]
["Projektbearbeitungsnummer:",null,{"$f":"IF('5d-Deckblatt ZE'!G18=\"\",\"\",'5d-Deckblatt ZE'!G18)","v":""},"Vertragsnummer:",{"$f":"IF('5d-Deckblatt ZE'!G19=\"\",\"\",'5d-Deckblatt ZE'!G19)","v":""}]
["Budgetlinie:"]
["Zeitraum von:",null,{"$f":"IF('5d-Deckblatt ZE'!G21=\"\",\"\",'5d-Deckblatt ZE'!G21)","v":""}]
["bis:",null,{"$f":"IF('5d-Deckblatt ZE'!I21=\"\",\"\",'5d-Deckblatt ZE'!I21)","v":""}]
[]
[{"$f":"ROMAN(1)","v":"I"},{"$f":"ROMAN(2)","v":"II"},{"$f":"ROMAN(3)","v":"III"},{"$f":"ROMAN(4)","v":"IV"},{"$f":"ROMAN(5)","v":"V"},{"$f":"ROMAN(6)","v":"VI"},{"$f":"ROMAN(7)","v":"VII"},{"$f":"ROMAN(8)","v":"VIII"},{"$f":"ROMAN(9)","v":"IX"}]
["lfd. Nr. ","interne Belegnummer des ZE","Belegdatum","Zahlungsempfänger des Beleges","detaillierter Beleginhalt","Bezeichnung\nFremdwährung (z.B. USD)","Betrag\nFremdwährung","Kurs*","Kosten in €"]
[1,null,null,null,null,null,null,null,{"$f":"IF(G11=\"\",\"\",G11*H11)","v":""}]
[2,null,null,null,null,null,null,null,{"$f":"IF(G12=\"\",\"\",G12*H12)","v":""}]
[3,null,null,null,null,null,null,null,""]
[4,null,null,null,null,null,null,null,""]
[5,null,null,null,null,null,null,null,""]
[6,null,null,null,null,null,null,null,""]
[7,null,null,null,null,null,null,null,""]
[8,null,null,null,null,null,null,null,""]
[9,null,null,null,null,null,null,null,""]
[10,null,null,null,null,null,null,null,""]
[11,null,null,null,null,null,null,null,""]
[12,null,null,null,null,null,null,null,""]
[13,null,null,null,null,null,null,null,""]
[14,null,null,null,null,null,null,null,""]
[15,null,null,null,null,null,null,null,""]
[16,null,null,null,null,null,null,null,""]
[17,null,null,null,null,null,null,null,""]
[18,null,null,null,null,null,null,null,""]
[19,null,null,null,null,null,null,null,""]
[20,null,null,null,null,null,null,null,""]
[null,null,null,null,"Gesamtsumme ",null,null,null,{"$f":"SUM(I11:I30)","v":0}]
[null,null,null,null,"(Übertrag auf Kostenzusammenstellung)"]
[]
["* Kurs, entweder gegen Nachweis (Umtauschbeleg) oder durch Anwendung der EU-Kursliste: https://www.giz.de/de/mit_der_giz_arbeiten/4226.html"]

{"sheet":"5f-Kostenzusammenstellung WE","index":4,"n_rows":38,"n_cols":8,"rows_kept":38,"cut":false,"hidden":false,"merged":[[32,2,32,3],[19,1,19,2],[20,1,20,2],[21,1,21,2],[22,1,22,2],[23,1,23,2],[24,1,24,2],[26,1,26,2],[27,0,27,3],[29,0,29,6],[30,0,30,6],[31,5,31,6],[18,1,18,2],[8,1,8,2],[8,3,9,3],[9,1,9,2],[10,1,10,2],[11,1,11,2],[12,1,12,2],[13,1,13,2],[14,1,14,2],[15,1,15,2],[16,1,16,2],[17,1,17,2],[7,1,7,2],[0,0,0,6],[1,1,1,4],[3,1,3,2],[4,1,4,2],[5,1,5,2],[2,1,2,3]]}
["Kostenzusammenstellung zum Verwendungsnachweis für Weiterleitungsempfänger (Anlage 5f)"]
["Zuschussempfänger (ZE):",{"$f":"IF('5d-Deckblatt ZE'!H2=\"\",\"\",'5d-Deckblatt ZE'!H2)","v":""}]
["Weiterleitungsempfänger (WE):"]
["Projektbearbeitungsnummer:",{"$f":"IF('5d-Deckblatt ZE'!G18=\"\",\"\",'5d-Deckblatt ZE'!G18)","v":""},null,"Vertragsnummer:",{"$f":"IF('5d-Deckblatt ZE'!G19=\"\",\"\",'5d-Deckblatt ZE'!G19)","v":""}]
["Zeitraum von:",{"$f":"IF('5d-Deckblatt ZE'!G21=\"\",\"\",'5d-Deckblatt ZE'!G21)","v":""}]
["bis:",{"$f":"IF('5d-Deckblatt ZE'!I21=\"\",\"\",'5d-Deckblatt ZE'!I21)","v":""}]
[]
[{"$f":"ROMAN(1)","v":"I"},{"$f":"ROMAN(2)","v":"II"},null,{"$f":"ROMAN(3)","v":"III"},{"$f":"ROMAN(4)","v":"IV"},{"$f":"ROMAN(5)","v":"V"},{"$f":"ROMAN(6)","v":"VI"},{"$f":"ROMAN(7)","v":"VII"}]
["Budgetlinie \ngemäß Vertrag","Kosten im o.g. Zeitraum\n(Übertrag Gesamtsummen aus Einzelbelegaufstellungen/\nAnlage 5e)",null,"Nur für GIZ","bisher nachgewiesene Kosten \n(aus vorherigen Abrechnungszeiträumen)\n","Gesamtbudget\ngemäß Vertrag ","Restmittel \n","Restmittel "]
[null,"€",null,null,"€","€","€","%"]
[null,null,null,null,null,null,{"$f":"IF(B11=\"\",\"\",F11-E11-B11)","v":""},{"$f":"IF(G11=\"\",\"\",G11/F11)","v":""}]
[null,null,null,null,null,null,"",""]
[null,null,null,null,null,null,"",""]
[null,null,null,null,null,null,"",""]
[null,null,null,null,null,null,"",""]
[null,null,null,null,null,null,"",""]
[null,null,null,null,null,null,"",""]
[null,null,null,null,null,null,"",""]
[null,null,null,null,null,null,"",""]
[null,null,null,null,null,null,"",""]
[null,null,null,null,null,null,"",""]
[null,null,null,null,null,null,"",""]
[null,null,null,null,null,null,"",""]
[null,null,null,null,null,null,"",""]
["Gesamt €",{"$f":"SUM(B11:C24)","v":0},null,null,{"$f":"SUM(E11:E24)","v":0},{"$f":"SUM(F11:F24)","v":0},{"$f":"SUM(G11:G24)","v":0}]
[]
["an Dritte weitergeleitete Abschläge/ Voraus-/Anzahlungen im o. g. Zeitraum (keine Kosten!)\n",0]
[]
["Wir bestätigen, dass "]
["   -  die Kosten notwendig waren und wirtschaftlich und sparsam verfahren worden ist"]
["   -  die in den Belegen enthaltenen Kosten richtig sind bzw. die im einfachen Verwendungsnachweis\n      aufgeführten Einnahmen, Kosten und Ausgaben mit den Büchern und Belegen übereinstimmen"]
[]
[]
[]
[]
[]
[]
["Datum / Unterschrift / ggf. Stempel"]